[Event "13th KIIT Festival-A 2022"]
[Site "Bhubaneswar"]
[Date "2022.05.29"]
[Round "10.10"]
[White "Rahman, Ziaur"]
[Black "Kiran, Manisha Mohanty"]
[Result "1-0"]
[ECO "D00"]
[WhiteElo "2431"]
[BlackElo "2098"]
[Annotator "TA"]
[PlyCount "73"]
[EventDate "2022.05.15"]
[EventType "swiss"]
[EventCountry "IND"]
[SourceTitle "playchess.com"]
[Source "ChessBase"]
[SourceQuality "1"]
[TimeControl "5400+30"]

{[%evp 16,73,6,8,36,27,43,35,63,43,105,110,102,96,121,112,156,163,175,158,160,149,167,155,226,227,242,201,202,211,209,196,203,189,239,232,287,294,335,263,266,226,335,325,378,341,427,430,500,449,900,569,543,537,1702,1064,29985,29986,29986,29985]} 1. d4 {[%emt 0:00:13]} Nf6 {[%emt 0:01:14]} 2. Bf4 {[%emt 0:00:22]} g6 {[%emt 0:01:54]} 3. Nc3 {[%emt 0:00:19]} d5 {[%emt 0:00:07]} 4. e3 {[%emt 0:00:06]} Bg7 {[%emt 0:00:30]} 5. Nb5 {[%emt 0:00:20]} Na6 {[%emt 0:00:15]} 6. h3 {[%emt 0:00:16]} c6 {[%emt 0:01:46]} 7. Nc3 {[%emt 0:00:11]} Nb8 {[%emt 0:00:17]} 8. Nf3 {[%emt 0:06:12]} O-O {[%emt 0:02:08]} 9. Be2 {[%emt 0:05:20]} h6 {[%emt 0:07:01] D00: 1 d4 d5: Unusual lines.} 10. O-O {[%emt 0:01:09]} Nbd7 {[%emt 0:02:45]} 11. a4 {[%emt 0:01:26] [#]} Ne4 $146 {[%emt 0:07:53] White is slightly better.} ({Predecessor:} 11... a5 12. Bd3 Re8 13. Bh2 Nh5 14. e4 e5 15. dxe5 dxe4 16. Bxe4 Nxe5 17. Qxd8 Nxf3+ 18. Bxf3 Rxd8 19. Rad1 Rxd1 20. Rxd1 {½-½ (40) Novikov,K (1696)-Hammerschmidt,V (1907) LSS email 2013}) 12. a5 {[%emt 0:05:44]} a6 {[%emt 0:03:25]} (12... f5 $14) 13. Nxe4 $16 {[%emt 0:01:10]} dxe4 {[%emt 0:00:14]} 14. Nd2 {[%emt 0:00:06]} f5 {[%emt 0:00:32] [#]} 15. Nc4 $1 {[%emt 0:03:15]} (15. Bc4+ Kh7 $14) 15... e6 {[%emt 0:09:11]} 16. c3 {[%emt 0:02:02]} Kh8 {[%emt 0:02:44]} 17. Bd6 {[%emt 0:05:13]} Rg8 {[%emt 0:07:08]} 18. f3 {[%emt 0:02:02] White is more active.} exf3 {[%emt 0:00:36]} 19. Bxf3 {[%emt 0:00:21]} Qg5 {[%emt 0:06:33]} (19... b5 $16 {was called for.}) 20. Qe1 $18 {[%emt 0:09:18]} Bf8 {[%emt 0:07:34]} 21. e4 {[%emt 0:03:47]} Bxd6 {[%emt 0:02:03]} 22. Nxd6 {[%emt 0:00:05] Nf7+ is the strong threat.} Qe7 {[%emt 0:00:07] Prevents Nf7+.} 23. e5 {[%emt 0:00:28]} Nf8 {[%emt 0:00:08]} 24. c4 {[%emt 0:02:31][%cal Bc3c4,Bc4d5][%mdl 32]} Rb8 {[%emt 0:01:22]} (24... Nh7 $142 25. Be2 Ng5) 25. Ra3 {[%emt 0:01:01][%cal Ba1a3,Ba3b3,Bb3b6][%mdl 32]} Bd7 {[%emt 0:01:01]} 26. Rb3 {[%emt 0:01:19]} Be8 {[%emt 0:00:07]} 27. Qe3 {[%emt 0:05:46]} g5 {[%emt 0:01:01]} 28. d5 {[%emt 0:02:13]} cxd5 {[%emt 0:12:33]} (28... Nd7 $142 29. Re1 (29. dxc6 bxc6 30. Rxb8 Nxb8 $18) (29. Nxb7 exd5 30. cxd5 Nxe5 $16) 29... Bg6 30. Rxb7 (30. dxc6 bxc6 31. Rxb8 Nxb8 $16) 30... cxd5 31. cxd5 f4) 29. cxd5 {[%emt 0:00:20]} Bd7 {[%emt 0:00:23]} 30. Rb6 {[%emt 0:03:19]} Ng6 {[%emt 0:01:05]} 31. Rc1 {[%emt 0:04:59]} Rgf8 {[%emt 0:06:03]} 32. Rc7 {[%emt 0:02:02]} exd5 {[%emt 0:02:10]} (32... Nf4 $142 33. dxe6 Nxe6) 33. e6 {[%emt 0:05:54]} Qxe6 {[%emt 0:02:05]} 34. Qc3+ {[%emt 0:01:21]} Kg8 {[%emt 0:01:14]} 35. Nxb7 {[%emt 0:01:22]} Qf7 {[%emt 0:02:50] [#]} 36. Rxg6+ $1 {[%emt 0:01:11][%mdl 576] Deflection} Qxg6 {[%emt 0:00:10]} 37. Bxd5+ {[%emt 0:00:17] Black did not feel at home in the position after the opening.  Weighted Error Value: White=0.19 (very precise) /Black=0.56} 1-0

[Event "13th KIIT Festival-A 2022"]
[Site "Bhubaneswar"]
[Date "2022.05.29"]
[Round "10.10"]
[White "Karthikeyan, P.."]
[Black "Shiva Pavan Teja Sharma U"]
[Result "1-0"]
[ECO "D27"]
[WhiteElo "2361"]
[BlackElo "2064"]
[Annotator "TA"]
[PlyCount "68"]
[EventDate "2022.05.15"]
[EventType "swiss"]
[EventCountry "IND"]
[SourceTitle "playchess.com"]
[Source "ChessBase"]
[SourceQuality "1"]
[TimeControl "5400+30"]

{[%evp 19,68,31,62,68,62,57,55,57,265,275,271,281,345,325,335,336,347,344,325,337,348,350,413,413,412,349,514,407,414,398,524,454,441,440,488,466,498,511,525,520,495,477,541,534,578,520,548,540,507,378,343]} 1. d4 {[%emt 0:00:06]} Nf6 {[%emt 0:00:21]} 2. c4 {[%emt 0:00:03]} e6 {[%emt 0:00:10]} 3. Nf3 {[%emt 0:00:02]} d5 {[%emt 0:00:20]} 4. Nc3 {[%emt 0:00:04]} c5 {[%emt 0:00:46]} 5. e3 {[%emt 0:00:13]} dxc4 {[%emt 0:04:30]} 6. Bxc4 {[%emt 0:00:32]} a6 {[%emt 0:00:56]} 7. a4 {[%emt 0:00:40]} b6 {[%emt 0:01:44]} 8. O-O {[%emt 0:01:11]} Bb7 {[%emt 0:01:50]} 9. Qe2 {[%emt 0:00:18]} Nc6 {[%emt 0:08:41]} 10. Rd1 {[%emt 0:01:19]} Qc7 {[%emt 0:02:00]} 11. d5 {[%emt 0:03:22] D27: Queen's Gambit Accepted: Classical main line: 7 e4!? and 7 a4.} exd5 {[%emt 0:00:26]} 12. Bxd5 {[%emt 1:28:40] And now e4 would win.} Be7 {[%emt 0:06:32]} 13. e4 $1 {[%emt 0:06:25][%cal Be3e4,Be4e5][%mdl 32] [#] White is slightly better.} Nd8 $146 {[%emt 0:19:27]} ({Black should play} 13... Rd8 $14) ({Predecessor:} 13... O-O 14. e5 Nd4 15. Rxd4 cxd4 16. exf6 Bxf6 17. Bxb7 Qxb7 18. Ne4 Qc6 19. Nxf6+ Qxf6 {1-0 (39) Atalik,S (2570)-Krush,I (2465) Kansas 2003}) 14. Bxb7 $18 {[%emt 0:05:47]} Qxb7 {[%emt 0:49:47] [#]} 15. e5 $1 {[%emt 0:00:11]} Nd7 {[%emt 0:48:59]} 16. Bg5 {[%emt 0:03:04] Hoping for Bxe7.} Nf8 {[%emt 0:02:19]} 17. Bxe7 {[%emt 0:05:36]} Qxe7 {[%emt 0:00:14]} 18. Rd6 {[%emt 0:00:18]} Nfe6 {[%emt 0:03:53]} 19. Nd5 {[%emt 0:01:17][%cal Bc3d5,Bd5b6,Bb6d7][%mdl 32]} ({Don't play} 19. Rxb6 $6 O-O 20. Rd1 (20. Rxa6 Nf4 $18) 20... Nf4 $18) 19... Qb7 {[%emt 0:02:05]} 20. Nxb6 {[%emt 0:00:43]} Rb8 {[%emt 0:00:11]} 21. a5 {[%emt 0:02:52]} O-O {[%emt 0:00:20]} 22. Nd7 {[%emt 0:01:15]} Nf4 {[%emt 0:04:33]} (22... Nc6 {might work better.} 23. b3 Rfe8 24. Nxb8 Rxb8) 23. Qd2 {[%emt 0:00:22]} Nde6 {[%emt 0:00:41]} 24. Nxb8 {[%emt 0:00:58]} ({But not} 24. Nxf8 Rxf8 25. Re1 Qa8 $18) 24... Qxb8 {[%emt 0:02:27]} 25. Ra4 {[%emt 0:10:37]} Ng6 {[%emt 0:02:12]} 26. Rb6 {[%emt 0:03:01] Prevents Qb5.} Qa8 {[%emt 0:01:01]} 27. Rc4 {[%emt 0:06:06]} Rd8 {[%emt 0:01:08]} 28. Rd6 {[%emt 0:00:10]} Rb8 {[%emt 0:01:13]} 29. b4 {[%emt 0:02:22]} cxb4 {[%emt 0:02:07]} 30. Rxb4 {[%emt 0:00:13]} Rc8 {[%emt 0:00:34]} 31. h4 {[%emt 0:46:41][%cal Bh2h4,Bh4h5][%mdl 32]} h6 {[%emt 0:01:59]} 32. h5 {[%emt 0:03:18]} Ne7 {[%emt 0:00:20]} 33. Rd7 {[%emt 0:00:34]} Nc6 {[%emt 0:03:01]} 34. Rc4 {[%emt 0:06:44]} Nxa5 {[%emt 0:05:49] White took control after the opening.  Weighted Error Value: White=0.15 (very precise) /Black=0.50} 1-0

[Event "13th KIIT Festival-A 2022"]
[Site "Bhubaneswar"]
[Date "2022.05.29"]
[Round "10.11"]
[White "Sidhant, Mohapatra"]
[Black "Ram Aravind L N"]
[Result "1/2-1/2"]
[ECO "B42"]
[WhiteElo "2327"]
[BlackElo "2116"]
[Annotator "TA"]
[PlyCount "60"]
[EventDate "2022.05.15"]
[EventType "swiss"]
[EventCountry "IND"]
[SourceTitle "playchess.com"]
[Source "ChessBase"]
[SourceQuality "1"]
[TimeControl "5400+30"]

{[%evp 14,60,51,50,56,31,56,31,48,39,61,66,61,47,54,49,71,85,87,65,55,48,41,0,54,0,107,76,97,93,117,77,76,59,118,119,106,104,104,110,119,0,127,128,106,0,0,0,93]} 1. e4 {[%emt 0:00:11]} c5 {[%emt 0:00:14]} 2. Nf3 {[%emt 0:00:09]} e6 {[%emt 0:00:05]} 3. d4 {[%emt 0:00:15]} cxd4 {[%emt 0:00:05]} 4. Nxd4 {[%emt 0:00:10]} a6 {[%emt 0:00:04]} 5. Bd3 {[%emt 0:00:17]} Bc5 {[%emt 0:00:08]} 6. Nb3 {[%emt 0:00:06]} Be7 {[%emt 0:00:05]} 7. Qg4 {[%emt 0:00:23]} g6 {[%emt 0:00:05]} 8. Qe2 {[%emt 0:00:08]} d6 {[%emt 0:00:04] B42: Sicilian: Kan Variation: 5 Bd3.} 9. Be3 {[%emt 0:00:10]} Qc7 {[%emt 0:00:26]} 10. N1d2 {[%emt 0:00:46]} Nd7 {[%emt 0:01:21] White is slightly better.} 11. a4 {[%emt 0:00:09][%cal Ba2a4,Ba4a5][%mdl 32]} b6 {[%emt 0:00:52][%cal Bb7b6,Bb6b5,Bb5b4][%mdl 32] [#]} 12. a5 $146 {[%emt 0:00:07] White is more active.} ({Predecessor:} 12. Nc4 Ngf6 13. a5 bxa5 14. Bh6 Bf8 15. Bxf8 Kxf8 16. O-O Kg7 17. Rxa5 d5 18. exd5 Nxd5 {½-½ (49) Saric,I (2466)-Palac,M (2567) Zadar 2007}) 12... b5 {[%emt 0:00:32]} 13. c4 {[%emt 0:00:12]} b4 {[%emt 0:00:37]} 14. O-O {[%emt 0:00:41]} Nc5 {[%emt 0:05:19]} 15. Nxc5 {[%emt 0:13:53]} dxc5 {[%emt 0:00:08]} 16. f4 $36 {[%emt 0:00:06][%mdl 2048] White is pushing.} Bb7 {[%emt 0:01:55]} 17. Bc2 {[%emt 0:00:40]} O-O-O {[%emt 0:02:43]} 18. Nb3 {[%emt 0:13:46]} Nf6 {[%emt 0:01:51]} (18... f5 $11) 19. Bf2 {[%emt 0:03:43]} (19. e5 $14 Nd7 20. Rae1) 19... Qxf4 {[%emt 0:10:13]} (19... Nh5 $11 {keeps the balance.}) 20. Bxc5 {[%emt 0:03:29]} Bxc5+ {[%emt 0:00:43]} 21. Nxc5 {[%emt 0:02:40]} Qe5 {[%emt 0:07:15][%csl LRb2,LRc5]} 22. Nxb7 {[%emt 0:00:44]} Kxb7 {[%emt 0:00:02]} 23. Qf2 {[%emt 0:00:38]} Ng4 {[%emt 0:07:15]} (23... Nd7 $14) 24. Qb6+ $16 {[%emt 0:00:27]} Ka8 {[%emt 0:01:32][%csl Gg4][%cal Re5h2] [#]} 25. Qxa6+ {[%emt 0:01:34]} Kb8 {[%emt 0:00:03][%csl Gg4][%cal Re5h2]} 26. Qb5+ {[%emt 0:05:14]} (26. Rxf7 Qxh2+ 27. Kf1 Qh1+ 28. Ke2 Qxg2+ 29. Ke1 Qd2+ 30. Kf1 Ne3+ 31. Kg1 Qg2#) 26... Ka8 {[%emt 0:14:31][%csl Gg4][%cal Re5h2]} 27. Qa6+ {[%emt 0:24:20]} (27. Rxf7 Qxh2+ 28. Kf1 Qh1+ 29. Ke2 Qxg2+ 30. Ke1 Qd2+ 31. Kf1 Ne3+ 32. Kg1 Qg2#) 27... Kb8 {[%emt 0:00:14][%csl Gg4][%cal Re5h2]} 28. Qb6+ {[%emt 0:00:36]} (28. Rxf7 Qxh2+ 29. Kf1 Qh1+ 30. Ke2 Qxg2+ 31. Ke1 Qd2+ 32. Kf1 Ne3+ 33. Kg1 Qg2#) 28... Ka8 {[%emt 0:00:11][%csl Gg4][%cal Re5h2] [#]} 29. Qc6+ {[%emt 0:00:46] Dancing on a razor blade.} ({Not} 29. Rxf7 $2 Qxh2+ 30. Kf1 Qh1+ 31. Qg1 Ne3+ 32. Ke2 Qxg1 33. Rxg1 Nxc2 $19) (29. g3 $1 $16 Qh5 30. h4 (30. Rxf7 $2 Qxh2+ 31. Kf1 Qh3+ 32. Ke1 Qxg3+ 33. Kf1 Qh3+ 34. Kg1 Qh2+ 35. Kf1 Qh1+ 36. Qg1 Ne3+ 37. Ke2 Qxg1 $19)) 29... Kb8 $11 {[%emt 0:00:05][%csl Gg4][%cal Re5h2]} 30. Qb6+ {[%emt 0:03:57]} (30. Rxf7 {is a self mate.} Qxh2+ 31. Kf1 Qh1+ 32. Ke2 Qxg2+ 33. Ke1 Qd2+ 34. Kf1 Ne3+ 35. Kg1 Qg2#) ({White should try} 30. g3 $11 Qd4+ 31. Kh1) 30... Ka8 {[%emt 0:00:09] Weighted Error Value: White=0.24 (precise) /Black=0.24 (precise)} 1/2-1/2

[Event "13th KIIT Festival-A 2022"]
[Site "Bhubaneswar"]
[Date "2022.05.29"]
[Round "10.12"]
[White "Aaryan Varshney"]
[Black "Krishnan Ritvik"]
[Result "1-0"]
[ECO "D41"]
[WhiteElo "2308"]
[BlackElo "2023"]
[Annotator "TA"]
[PlyCount "49"]
[EventDate "2022.05.15"]
[EventType "swiss"]
[EventCountry "IND"]
[SourceTitle "playchess.com"]
[Source "ChessBase"]
[SourceQuality "1"]
[TimeControl "5400+30"]

{[%evp 28,49,11,0,0,0,0,0,0,0,0,0,20,42,680,680,680,668,671,613,653,551,611,553]} 1. d4 {[%emt 0:04:47]} Nf6 2. c4 {[%emt 0:01:10]} e6 {[%emt 0:00:06]} 3. Nf3 {[%emt 0:00:08]} d5 {[%emt 0:00:01]} 4. Nc3 {[%emt 0:00:06]} c5 {[%emt 0:00:01]} 5. cxd5 {[%emt 0:01:13]} Nxd5 {[%emt 0:00:02]} 6. e4 {[%emt 0:01:04]} Nxc3 {[%emt 0:00:01]} 7. bxc3 {[%emt 0:00:07]} cxd4 {[%emt 0:00:01]} 8. cxd4 {[%emt 0:01:08]} Bb4+ {[%emt 0:00:02]} 9. Bd2 {[%emt 0:00:07]} Bxd2+ {[%emt 0:00:01]} 10. Qxd2 {[%emt 0:00:08]} O-O {[%emt 0:00:02]} 11. Rc1 {[%emt 0:01:34]} b6 {[%emt 0:00:09]} 12. Bd3 {[%emt 0:00:16]} Bb7 {[%emt 0:00:01]} 13. O-O {[%emt 0:02:39][%cal Bh1f1,Bf1c1,Bc1c7][%mdl 32]} Nd7 {[%emt 0:00:01][%cal Bb8d7,Bd7f6,Bf6e4][%mdl 32]} 14. Qe3 {[%emt 0:01:04]} Nf6 {[%emt 0:01:50]} 15. Qf4 {[%emt 0:02:17]} Rc8 {[%emt 0:15:11] D41: Queen's Gambit Declined: Semi-Tarrasch with 5 cxd5.} 16. Rxc8 {[%emt 0:10:13]} Qxc8 {[%emt 0:01:18]} 17. Rc1 {[%emt 0:00:14] Prevents Qc3.} Qa8 {[%emt 0:06:08][%cal Rb7e4] [#] The position is equal.} 18. d5 $146 {[%emt 0:03:04]} ({Predecessor:} 18. Re1 h6 19. g4 Nh7 20. g5 Qd8 21. gxh6 g5 22. Qe5 g4 23. Qg7# {1-0 (23) Schmidt,V (1843)-De Kluijver,A (1515) Gemuend 1999}) 18... exd5 {[%emt 0:03:19]} 19. e5 {[%emt 0:00:15][%cal Be4e5,Be5e6][%mdl 32]} Ne4 {[%emt 0:00:21]} 20. Rc7 {[%emt 0:00:43][%cal Oe5e6] aiming for e6!} Qb8 $2 {[%emt 0:07:20][%mdl 8192] [#]} (20... Bc8 $14) 21. e6 $1 $18 {[%emt 0:00:57] White is clearly winning.} f6 {[%emt 0:10:18]} 22. Bxe4 {[%emt 0:16:41]} dxe4 {[%emt 0:01:25]} 23. Nd4 {[%emt 0:00:26][%cal Oc7g7] White wants to mate with Rxg7+!} Rc8 {[%emt 0:10:00] [#]} 24. e7 $1 {[%emt 0:01:42]} Kf7 {[%emt 0:01:04] [#]} 25. Nb5 $1 {[%emt 0:04:03] White took control after the opening.  Weighted Error Value: White=0.01 (flawless) /Black=0.74} 1-0

[Event "13th KIIT Festival-A 2022"]
[Site "Bhubaneswar"]
[Date "2022.05.29"]
[Round "10.13"]
[White "Daksh Goyal"]
[Black "Nayak Sajan Kumar"]
[Result "1/2-1/2"]
[ECO "A28"]
[WhiteElo "1795"]
[BlackElo "1681"]
[Annotator "NA RC COMBH"]
[PlyCount "163"]
[EventDate "2022.05.15"]
[EventType "swiss"]
[EventCountry "IND"]
[SourceTitle "playchess.com"]
[Source "ChessBase"]
[SourceQuality "1"]
[TimeControl "5400+30"]

1. c4 {[%emt 0:01:07]} e5 {[%emt 0:00:12]} 2. Nc3 {[%emt 0:00:05]} Nc6 {[%emt 0:00:10]} 3. Nf3 {[%emt 0:00:06]} Nf6 {[%emt 0:00:07]} 4. e3 {[%emt 0:00:04]} Bb4 {[%emt 0:00:14]} 5. Qc2 {[%emt 0:00:06]} Bxc3 {[%emt 0:00:47]} 6. Qxc3 {[%emt 0:00:07]} Qe7 {[%emt 0:00:06]} 7. b3 {[%emt 0:00:26]} d5 {[%emt 0:00:35]} 8. d4 {[%emt 0:00:54]} exd4 {[%emt 0:00:05]} 9. Nxd4 {[%emt 0:00:19]} Nxd4 {[%emt 0:00:06]} 10. Qxd4 {[%emt 0:00:14]} c5 {[%emt 0:00:05]} 11. Qf4 {[%emt 0:10:00]} g5 {[%emt 0:00:51]} 12. Qxg5 {[%emt 0:00:57]} Rg8 {[%emt 0:00:08]} 13. Qf4 {[%emt 0:00:47]} Rg4 {[%emt 0:00:10]} 14. Qf3 {[%emt 0:08:37]} Qe5 {[%emt 0:00:21]} 15. Rb1 {[%emt 0:02:59]} Bf5 {[%emt 0:00:17]} 16. Bb2 {[%emt 0:02:55]} d4 {[%emt 0:00:08]} 17. Rd1 {[%emt 0:09:11]} O-O-O {[%emt 0:00:17]} 18. Bd3 {[%emt 0:17:50]} Bd7 {[%emt 0:00:36]} 19. g3 {[%emt 0:13:59]} Rgg8 {[%emt 0:02:48]} 20. Qf4 {[%emt 0:04:04]} Qxf4 {[%emt 0:40:05]} 21. exf4 {[%emt 0:12:50]} Bg4 {[%emt 0:12:59]} 22. Rc1 {[%emt 0:04:14]} Rge8+ {[%emt 0:00:19]} 23. Kd2 {[%emt 0:00:31]} Ne4+ {[%emt 0:40:34]} 24. Bxe4 {[%emt 0:00:17]} Rxe4 {[%emt 0:00:00]} 25. Rhe1 {[%emt 0:03:53]} Rde8 {[%emt 0:00:00]} 26. Rxe4 {[%emt 0:00:40]} Rxe4 {[%emt 0:00:00]} 27. Re1 {[%emt 0:00:51]} Rxe1 {[%emt 0:00:00]} 28. Kxe1 {[%emt 0:00:03]} a5 {[%emt 0:00:00]} 29. Kd2 {[%emt 0:01:54]} Kd7 {[%emt 0:00:00]} 30. a3 {[%emt 0:00:47]} b6 {[%emt 0:00:00]} 31. Bc1 {[%emt 0:03:30]} Ke6 {[%emt 0:04:00]} 32. Kc2 {[%emt 0:00:48]} Kf5 {[%emt 0:00:00]} 33. Kd3 {[%emt 0:00:45]} Bf3 {[%emt 0:00:00]} 34. b4 {[%emt 0:01:08]} a4 {[%emt 0:00:00]} 35. bxc5 {[%emt 0:00:30]} bxc5 {[%emt 0:00:00]} 36. Bd2 {[%emt 0:00:17]} Bg2 {[%emt 0:00:00]} 37. Ke2 {[%emt 0:00:43]} Ke4 {[%emt 0:00:00]} 38. Ba5 {[%emt 0:00:31]} d3+ {[%emt 0:00:00]} 39. Kd2 {[%emt 0:00:29]} Kd4 {[%emt 0:00:00]} 40. g4 {[%emt 0:01:02]} Kxc4 {[%emt 0:00:00]} 41. h4 {[%emt 0:00:00]} Bf3 {[%emt 0:00:00]} 42. g5 {[%emt 0:00:14]} Be4 {[%emt 0:00:00]} 43. Bb6 {[%emt 0:00:42]} Bf5 {[%emt 0:00:00]} 44. Ba7 {[%emt 0:00:32]} Kd5 {[%emt 0:00:00]} 45. Kc3 {[%emt 0:00:31]} Bg6 {[%emt 0:00:00]} 46. h5 {[%emt 0:00:25]} Bf5 {[%emt 0:00:00]} 47. Bb6 {[%emt 0:00:33]} Kc6 {[%emt 0:00:00]} 48. Bd8 {[%emt 0:00:31]} Kd6 {[%emt 0:00:00]} 49. h6 {[%emt 0:00:24]} Kd5 {[%emt 0:00:00]} 50. Bb6 {[%emt 0:00:21]} Bg6 {[%emt 0:00:00]} 51. Ba7 {[%emt 0:00:23]} Bf5 {[%emt 0:00:00]} 52. Bb6 {[%emt 0:00:10]} Kd6 {[%emt 0:00:00]} 53. Ba7 {[%emt 0:00:41]} Kc6 {[%emt 0:00:00]} 54. Bb8 {[%emt 0:00:22]} Kb6 {[%emt 0:00:00]} 55. Bd6 {[%emt 0:00:28]} Kb5 {[%emt 0:00:00]} 56. Be7 {[%emt 0:00:50]} Kc6 {[%emt 0:00:00]} 57. Bd8 {[%emt 0:00:29]} Bg6 {[%emt 0:00:00]} 58. Ba5 {[%emt 0:00:21]} Be4 {[%emt 0:00:00]} 59. Bd8 {[%emt 0:00:22]} Bf5 {[%emt 0:00:00]} 60. Ba5 {[%emt 0:00:15]} Kd5 {[%emt 0:00:00]} 61. Bb6 {[%emt 0:00:19]} c4 {[%emt 0:00:00]} 62. Be3 {[%emt 0:00:27]} Be6 {[%emt 0:00:00]} 63. Kd2 {[%emt 0:01:17]} Ke4 {[%emt 0:00:00]} 64. Kc3 {[%emt 0:00:20]} Kf5 {[%emt 0:00:00]} 65. Bd2 {[%emt 0:00:52]} Ke4 {[%emt 0:00:00]} 66. Be3 {[%emt 0:00:28]} Kf3 {[%emt 0:00:00]} 67. Kb4 {[%emt 0:00:41]} Ke2 {[%emt 0:00:00]} 68. Kc3 {[%emt 0:00:01]} Kd1 {[%emt 0:00:00]} 69. Bd2 {[%emt 0:01:00]} Bh3 {[%emt 0:00:00]} 70. Be3 {[%emt 0:00:21]} Bf5 {[%emt 0:00:00]} 71. Kb2 {[%emt 0:00:38]} Ke2 {[%emt 0:00:00]} 72. Kc3 {[%emt 0:00:11]} Be6 {[%emt 0:00:00]} 73. Bc1 {[%emt 0:00:50]} Kxf2 {[%emt 0:00:00]} 74. f5 {[%emt 0:00:17]} Bxf5 {[%emt 0:00:00]} 75. Kxc4 {[%emt 0:00:06]} Ke1 {[%emt 0:00:00]} 76. Kc3 {[%emt 0:00:23]} Ke2 {[%emt 0:00:00]} 77. Bf4 {[%emt 0:00:18]} Kf3 {[%emt 0:00:00]} 78. Bc1 {[%emt 0:00:08]} Ke4 {[%emt 0:00:00]} 79. Kd2 {[%emt 0:00:26]} Kd4 {[%emt 0:00:00]} 80. Bb2+ {[%emt 0:00:10]} Kc4 {[%emt 0:00:00]} 81. Bf6 {[%emt 0:00:07]} Bg6 {[%emt 0:00:00]} 82. Be7 {[%emt 0:00:03]} 1/2-1/2

[Event "13th KIIT Festival-A 2022"]
[Site "Bhubaneswar"]
[Date "2022.05.29"]
[Round "10.14"]
[White "Alekhya Mukhopadhyay"]
[Black "Liyanage, Pesandu Rashmitha"]
[Result "1-0"]
[ECO "B99"]
[WhiteElo "2162"]
[BlackElo "1730"]
[Annotator "TA"]
[PlyCount "59"]
[EventDate "2022.05.15"]
[EventType "swiss"]
[EventCountry "IND"]
[SourceTitle "playchess.com"]
[Source "ChessBase"]
[SourceQuality "1"]
[TimeControl "5400+30"]

{[%evp 27,59,20,28,16,39,-25,27,-87,45,23,15,9,173,160,155,159,162,141,141,114,173,56,56,20,185,60,409,392,367,385,696,649,835,812]} 1. e4 {[%emt 0:00:04]} c5 {[%emt 0:10:36]} 2. Nf3 {[%emt 0:00:06]} d6 {[%emt 0:00:06]} 3. d4 {[%emt 0:00:08]} cxd4 {[%emt 0:00:01]} 4. Nxd4 {[%emt 0:00:08]} Nf6 {[%emt 0:00:01]} 5. Nc3 {[%emt 0:00:09]} a6 {[%emt 0:00:01]} 6. Bg5 {[%emt 0:00:07]} e6 {[%emt 0:00:01]} 7. f4 {[%emt 0:00:12]} Be7 {[%emt 0:00:08]} 8. Qf3 {[%emt 0:00:19]} Nbd7 {[%emt 0:00:09]} 9. O-O-O {[%emt 0:00:24]} Qc7 {[%emt 0:00:01]} 10. Bd3 {[%emt 0:00:32]} h6 {[%emt 0:00:06]} 11. Bh4 {[%emt 0:01:35]} g5 {[%emt 0:00:57]} 12. fxg5 {[%emt 0:00:33]} Ne5 {[%emt 0:00:12]} 13. Qe2 {[%emt 0:01:33]} Nfg4 {[%emt 0:00:33]} 14. Nf3 {[%emt 0:01:31]} hxg5 {[%emt 0:02:54]} 15. Bg3 {[%emt 0:05:36] B99: Sicilian Najdorf: 6 Bg5 e6 7 f4 Be7 8 Qf3 Qc7 9 0-0-0 Nbd7.} b5 {[%emt 0:10:16]} 16. Rdf1 {[%emt 0:05:18]} ({White should try} 16. h3 $14 Nxd3+ 17. cxd3 (17. Qxd3 Ne5 $15)) 16... b4 {[%emt 0:08:49] [#]} (16... Nxd3+ $142 17. Qxd3 Bb7) 17. Nd1 $146 {[%emt 0:07:20]} (17. Nxe5 $11 {remains equal.} Nxe5 18. Bxe5 dxe5 19. Nd1) ({Predecessor:} 17. Nxe5 Nxe5 18. Bxe5 dxe5 19. Nd1 Bb7 20. Ne3 f6 21. Ng4 Rf8 22. Rf2 a5 23. Bb5+ {1-0 (23) Jabot,D (1700)-Mamedov,N (1868) FICGS email 2010}) 17... a5 {[%emt 0:00:38]} ({Black should play} 17... Nxd3+ $17 18. Qxd3 a5) 18. Bb5+ {[%emt 0:04:09]} Bd7 $1 {[%emt 0:01:09]} 19. h3 {[%emt 0:03:02]} Nh6 {[%emt 0:04:37]} (19... Nf6 $1 $11) 20. Nxe5 {[%emt 0:01:14]} dxe5 {[%emt 0:01:54]} 21. Bxd7+ {[%emt 0:00:12]} Kxd7 {[%emt 0:00:31]} 22. Qb5+ {[%emt 0:03:19]} Qc6 {[%emt 0:00:10]} 23. Qxe5 {[%emt 0:01:43] [#] Qd4+ is the strong threat.} Rhc8 {[%emt 0:00:21]} (23... Rh7 $16 {was necessary.}) 24. Qd4+ {[%emt 0:16:14] Dancing on a razor blade.} (24. Ne3 $18 {And now Rd1+ would win.} Qc5 {[#]} 25. Kb1 $1 (25. Rd1+ Kc6 $16)) 24... Ke8 $1 $14 {[%emt 0:00:14][%csl Gc8][%cal Rc6c2]} 25. Rf2 $36 {[%emt 0:01:15][%mdl 2048] White is more active.} b3 $2 {[%emt 0:01:00]} (25... f6 $11) 26. Nc3 {[%emt 0:04:57]} (26. Qh8+ $18 Bf8 27. axb3) 26... a4 $2 {[%emt 0:04:19][%mdl 8192]} (26... bxa2 $14 27. Nxa2 f6) 27. Qh8+ $18 {[%emt 0:04:01]} Bf8 {[%emt 0:00:11]} 28. a3 {[%emt 0:01:14]} bxc2 $2 {[%emt 0:02:55]} (28... Qc5) 29. Be5 {[%emt 0:02:55]} Ke7 {[%emt 0:15:51]} 30. Rd2 {[%emt 0:01:52] Weighted Error Value: White=0.36/Black=1.06} 1-0